bitfinex-derivatives/quotes_SOLF0:USTF0_20241222
["timestamp","ask_amount","ask_price","bid_price","bid_amount"]
[1734861454396,14.05576586,185.73,185.65,5.5352]
[1734861454699,2.6945,185.7,185.65,5.5352]
[1734861455996,14.05576586,185.73,185.62,3.2382]
[1734861456201,14.05576586,185.7,185.61,2.84]
[1734861456398,2.6952,185.65,185.61,2.6958]
[1734861458305,2.695,185.67,185.62,2.6956]
[1734861459594,2.6951,185.66,185.61,5.5358]
[1734861461705,2.6949,185.68,185.62,2.6956]
[1734861461999,16.89576586,185.7,185.62,2.6956]
[1734861462195,2.695,185.67,185.62,2.6956]
[1734861463097,2.695,185.67,185.61,2.84]
[1734861463098,2.6946,185.69,185.64,2.6953]
[1734861463294,2.84,185.7,185.64,2.6953]
[1734861464395,2.6948,185.69,185.64,2.6953]
[1734861465400,2.6949,185.67,185.63,2.6955]
[1734861465791,16.89576586,185.7,185.58,1.6499]
[1734861465994,8.78430639,185.67,185.59,2.84]
[1734861466301,2.6955,185.63,185.59,5.5361]
[1734861466602,2.6955,185.63,185.58,7.1861]
[1734861467095,8.78430639,185.67,185.58,1.6499]
[1734861467096,2.84,185.66,185.58,1.6499]
[1734861468404,2.6958,185.62,185.58,1.6499]
[1734861468599,2.84,185.66,185.57,2.6963]
[1734861468808,1.7254,185.65,185.55,2.84]
[1734861469301,1.7254,185.65,185.56,2.6965]
[1734861469805,1.7254,185.65,185.53,1.6092]
[1734861469806,2.6961,185.6,185.55,2.6966]
[1734861470208,1.7254,185.65,185.54,2.84]
[1734861470596,2.6957,185.62,185.57,2.6962]
[1734861470797,1.7254,185.65,185.54,2.84]
[1734861471099,2.6961,185.6,185.55,2.6966]
[1734861471405,1.7254,185.65,185.55,2.6966]
[1734861472006,14.05719762,185.64,185.53,1.6092]
[1734861472506,2.6964,185.57,185.53,1.6092]
[1734861473800,2.6966,185.56,185.51,1.6387]
[1734861474000,2.84,185.61,185.51,2.6972]
[1734861474695,2.84,185.61,185.52,2.6971]
[1734861475406,2.6965,185.57,185.52,2.6971]
[1734861476314,2.6965,185.56,185.52,2.6971]
[1734861477112,2.6965,185.56,185.51,2.6972]
[1734861479713,2.6967,185.55,185.5,102.6974]
[1734861481123,2.6965,185.56,185.51,2.6972]
[1734861481519,2.84,185.61,185.5,100.0]
[1734861481917,2.6963,185.58,185.53,2.6968]
[1734861482120,16.89719762,185.64,185.53,2.84]
[1734861482422,14.05719762,185.64,185.53,2.84]
[1734861482616,16.89719762,185.67,185.53,2.84]
[1734861482812,16.89719762,185.67,185.54,3.3244]
[1734861483013,2.6956,185.62,185.57,2.6963]
[1734861483213,2.6956,185.62,185.58,2.84]
[1734861483921,2.6955,185.63,185.58,5.5362]
[1734861484327,16.89719762,185.67,185.58,2.84]
[1734861484620,2.6958,185.62,185.58,2.84]
[1734861484816,16.89719762,185.67,185.58,2.84]
[1734861485217,2.6957,185.62,185.58,2.84]
[1734861486021,14.05719762,185.64,185.55,1.7156]
[1734861486925,2.696,185.6,185.55,1.7156]
[1734861487322,2.696,185.6,185.55,4.4121]
[1734861487523,2.6957,185.62,185.55,1.7156]
[1734861487828,2.6957,185.62,185.57,2.6963]
[1734861488029,2.6958,185.61,185.55,1.7156]
[1734861489223,14.05719762,185.67,185.55,1.7156]
[1734861489721,2.6955,185.64,185.59,2.6961]
[1734861491526,2.6953,185.65,185.59,2.696]
[1734861491728,14.05719762,185.67,185.59,2.696]
[1734861492124,17.37989762,185.7,185.58,2.84]
[1734861492319,2.84,185.69,185.58,2.84]
[1734861492525,17.37989762,185.7,185.58,2.84]
[1734861492828,2.6952,185.66,185.61,2.6957]
[1734861493030,17.37989762,185.7,185.58,2.84]
[1734861493621,17.37989762,185.7,185.6,2.6959]
[1734861493622,2.695,185.67,185.6,2.6959]
[1734861493828,17.37989762,185.7,185.6,2.6959]
[1734861494130,14.05719762,185.67,185.59,2.84]
[1734861494427,16.89719762,185.67,185.59,2.84]
[1734861494924,16.89719762,185.67,185.59,5.5361]
[1734861495331,2.696,185.6,185.56,2.6964]
[1734861495929,2.6961,185.59,185.55,4.5556]
[1734861496732,2.6961,185.59,185.55,1.7156]
[1734861496933,2.6961,185.59,185.55,4.5556]
[1734861497136,2.6959,185.6,185.55,7.2521]
[1734861498436,2.6962,185.59,185.55,4.5556]
[1734861499533,2.6959,185.6,185.55,4.5556]
[1734861499736,8.78893469,185.62,185.55,4.5556]
[1734861500135,2.6958,185.61,185.56,2.6965]
[1734861501834,8.78893469,185.62,185.56,2.6965]
[1734861502035,2.696,185.6,185.56,2.6965]
[1734861503642,2.696,185.6,185.55,7.2522]
[1734861504536,8.78893469,185.62,185.55,4.5556]
[1734861504537,2.6962,185.59,185.55,4.5556]
[1734861504737,2.6962,185.59,185.55,1.7156]
[1734861507243,2.6962,185.59,185.55,4.4122]
[1734861507742,2.6962,185.59,185.55,1.7156]
[1734861507942,8.78893469,185.62,185.55,1.7156]
[1734861508142,1.6238,185.61,185.51,2.84]
[1734861508645,2.6962,185.58,185.51,2.84]
[1734861509241,2.6958,185.61,185.56,2.6965]
[1734861509439,2.6958,185.61,185.55,2.84]
[1734861509636,8.78893469,185.62,185.55,2.84]
[1734861510139,2.696,185.6,185.55,5.5366]
[1734861510537,2.696,185.6,185.55,2.84]
[1734861511438,2.696,185.6,185.56,2.6965]
[1734861511845,2.84,185.65,185.56,2.6965]
[1734861512145,8.78893469,185.64,185.58,2.6962]
[1734861512338,1.6238,185.66,185.56,1.639]
[1734861512545,2.6953,185.65,185.59,2.6961]
[1734861512747,2.6953,185.65,185.59,5.5361]
[1734861514544,1.6238,185.66,185.59,5.5361]
[1734861514545,2.6954,185.64,185.59,5.5361]
[1734861516047,1.6238,185.66,185.59,2.84]
[1734861516244,8.78893469,185.64,185.57,2.84]
[1734861516451,8.78893469,185.64,185.56,3.3141]
[1734861516646,8.78893469,185.64,185.56,6.1541]
[1734861517150,2.6959,185.61,185.56,6.1541]
[1734861517353,8.78893469,185.64,185.56,6.1541]
[1734861517853,2.6959,185.61,185.56,8.8506]
[1734861519450,8.78893469,185.64,185.51,58.26147883]
[1734861519752,2.84,185.65,185.51,59.98867883]
[1734861520051,8.78893469,185.57,185.51,59.98867883]
[1734861520240,2.84,185.59,185.51,1.7272]
[1734861520445,8.78893469,185.6,185.51,1.7272]
[1734861521552,2.6962,185.59,185.54,2.6967]
[1734861522457,2.6962,185.59,185.53,5.5369]
[1734861522654,8.78893469,185.6,185.53,2.84]
[1734861524050,8.78893469,185.6,185.51,4.4244]
[1734861524252,2.84,185.61,185.5,102.84]
[1734861524451,8.78893469,185.59,185.5,102.84]
[1734861524754,2.6964,185.57,185.52,2.697]
[1734861524951,2.6964,185.57,185.5,102.84]
[1734861525351,2.6964,185.57,185.52,2.6971]
[1734861526152,2.6966,185.56,185.51,2.6972]
[1734861526861,2.6967,185.55,185.51,2.6972]
[1734861527252,2.6967,185.55,185.5,105.5374]
[1734861527448,2.6967,185.55,185.5,102.6974]
[1734861527658,2.6968,185.54,185.5,100.0]
[1734861528259,2.6972,185.52,185.5,100.0]
[1734861528551,8.78893469,185.56,185.5,100.0]
[1734861528758,2.84,185.57,185.5,102.6973]
[1734861529156,2.84,185.57,185.5,100.0]
[1734861530053,2.84,185.6,185.51,2.84]
[1734861530259,11.62893469,185.6,185.51,2.84]
[1734861531259,11.62893469,185.6,185.52,2.6971]
[1734861531458,11.62893469,185.6,185.5,100.0]
[1734861531660,2.6967,185.55,185.5,102.6974]
[1734861531855,8.78893469,185.57,185.5,100.0]
[1734861532861,2.6966,185.56,185.52,2.6971]
[1734861533766,8.78893469,185.57,185.5,100.0]
[1734861533953,2.6967,185.55,185.51,2.6972]
[1734861534358,2.6965,185.57,185.52,2.697]
[1734861534658,2.6965,185.57,185.5,100.0]
[1734861535167,11.62893469,185.6,185.5,100.0]
[1734861535374,2.6965,185.56,185.52,2.6971]
[1734861537369,2.6965,185.56,185.51,2.6972]
[1734861537570,2.6967,185.55,185.51,2.6972]
[1734861537965,11.62893469,185.6,185.5,105.5373]
[1734861538770,2.6967,185.55,185.5,105.5373]
[1734861539161,11.62893469,185.6,185.5,102.84]
[1734861539362,2.6971,185.53,185.5,100.0]
[1734861539967,8.78893469,185.57,185.5,100.0]
[1734861540571,11.62893469,185.57,185.5,100.0]
[1734861541871,2.697,185.53,185.5,100.0]
[1734861544169,11.62893469,185.57,185.5,100.0]
[1734861544365,2.6971,185.52,185.5,100.0]
[1734861545467,2.84,185.56,185.5,100.0]
[1734861547376,8.78893469,185.57,185.5,100.0]
[1734861547873,2.6968,185.55,185.5,102.6972]
[1734861548074,8.78893469,185.57,185.5,100.0]
[1734861548773,5.73832072,185.62,185.43,58.26147883]
[1734861548774,8.78893469,185.58,185.43,58.26147883]
[1734861548969,8.78893469,185.48,185.43,58.26147883]
[1734861549172,8.78893469,185.48,185.44,2.6982]
[1734861549373,8.78893469,185.48,185.43,58.26147883]
[1734861549773,8.78893469,185.48,185.43,2.6984]
[1734861549974,8.78893469,185.48,185.41,2.82]
[1734861551673,11.48673469,185.48,185.43,2.6984]
[1734861552172,8.78893469,185.48,185.41,2.82]
[1734861552373,2.6974,185.5,185.41,2.82]
[1734861552577,8.78893469,185.51,185.41,2.82]
[1734861552776,11.48623469,185.51,185.44,2.6982]
[1734861552972,11.48623469,185.51,185.45,2.84]
[1734861553173,8.78893469,185.51,185.45,2.84]
[1734861554174,2.6971,185.52,185.45,5.538]
[1734861554379,8.78893469,185.61,185.46,12.06003469]
[1734861554772,8.78893469,185.61,185.51,2.6971]
[1734861554773,2.6965,185.57,185.51,2.6971]
[1734861554970,8.78893469,185.61,185.52,2.84]
[1734861555573,2.6965,185.57,185.52,2.84]
[1734861555775,8.78893469,185.61,185.52,2.84]
[1734861555969,2.84,185.63,185.52,2.84]
[1734861556176,1.6545,185.65,185.53,1.7172]
[1734861556372,1.6545,185.65,185.54,8.78893469]
[1734861556575,8.78893469,185.66,185.54,8.78893469]
[1734861556773,2.82,185.69,185.54,8.78893469]
[1734861556974,34.37517793,185.7,185.57,8.78893469]
[1734861557179,2.6949,185.67,185.61,2.6957]
[1734861557382,2.6949,185.67,185.58,2.82]
[1734861557383,2.6949,185.67,185.62,4.5372]
[1734861562974,16.87067399,185.72,185.62,4.5372]
[1734861563180,14.05067399,185.72,185.62,4.5372]
[1734861563484,3.3098,185.74,185.62,4.5372]
[1734861564179,1.5919,185.74,185.62,4.5372]
[1734861564386,1.5919,185.74,185.63,1.6534]
[1734861565184,2.6944,185.71,185.65,2.6952]
[1734861565483,2.6944,185.71,185.66,2.82]
[1734861565883,1.5919,185.74,185.63,1.6534]
[1734861566083,1.5919,185.74,185.64,2.82]
[1734861566286,2.82,185.73,185.64,2.82]
[1734861566479,2.6948,185.69,185.64,2.82]
[1734861566684,14.05067399,185.72,185.64,2.82]
[1734861567682,2.6948,185.68,185.63,4.4734]
[1734861569075,2.6949,185.67,185.63,2.82]
[1734861573090,2.6949,185.67,185.62,7.2328]
[1734861573785,15.73447399,185.72,185.62,1.7172]
[1734861574091,14.05067399,185.69,185.6,2.82]
[1734861574288,2.82,185.68,185.57,2.82]
[1734861574489,2.82,185.68,185.58,2.82]
[1734861574990,2.6957,185.62,185.58,2.82]
[1734861575989,2.6957,185.62,185.57,2.6962]
[1734861576194,2.6957,185.62,185.57,5.5162]
[1734861576680,14.05067399,185.66,185.55,2.6966]
[1734861576880,14.05067399,185.66,185.55,2.82]
[1734861577488,2.6959,185.61,185.56,2.6965]
[1734861577683,14.05067399,185.66,185.55,2.82]
[1734861578589,2.6961,185.6,185.55,5.5166]
[1734861581595,14.05067399,185.66,185.55,2.82]
[1734861581791,2.6958,185.62,185.57,2.6963]
[1734861582393,2.6958,185.61,185.56,2.6965]
[1734861582898,2.6956,185.63,185.57,2.6964]
[1734861583297,10.42852579,185.67,185.57,2.6964]
[1734861583496,2.82,185.66,185.57,2.6964]
[1734861583898,8.78512579,185.64,185.54,1.6249]
[1734861584698,2.6962,185.59,185.54,4.3217]
[1734861584895,10.52392579,185.65,185.54,1.6249]
[1734861585095,10.52392579,185.65,185.54,4.4449]
[1734861585290,1.6434,185.67,185.54,13.23002579]
[1734861585591,8.78512579,185.69,185.54,4.4449]
[1734861585790,2.6952,185.65,185.58,2.6962]
[1734861585991,2.6952,185.65,185.59,2.82]
[1734861586798,8.78512579,185.69,185.59,2.82]
[1734861587293,3.2492,185.68,185.59,2.82]
[1734861587498,8.78512579,185.66,185.59,2.82]
[1734861587698,8.78512579,185.66,185.56,2.82]
[1734861587892,2.6955,185.63,185.56,5.5165]
[1734861588093,8.78512579,185.66,185.56,5.5165]
[1734861588399,2.696,185.6,185.56,5.5165]
[1734861589599,2.6963,185.58,185.56,2.82]
[1734861589799,2.6963,185.58,185.54,4.3217]
[1734861590498,2.6963,185.58,185.54,1.6249]
[1734861593402,2.6959,185.61,185.56,2.6965]
[1734861593602,2.82,185.64,185.56,2.6965]
[1734861594303,1.3285,185.67,185.58,2.6962]
[1734861594603,2.6956,185.63,185.58,2.6962]
[1734861595304,12.93362579,185.67,185.58,2.6962]
[1734861595500,2.6957,185.62,185.58,2.6962]
[1734861596406,2.6957,185.62,185.57,2.6963]
[1734861597506,2.696,185.6,185.56,2.82]
[1734861598312,2.696,185.6,185.56,5.5164]
[1734861599609,2.696,185.6,185.55,5.5166]
[1734861600406,2.6961,185.59,185.55,5.5166]
[1734861600806,2.82,185.63,185.55,2.82]
[1734861601211,2.6964,185.57,185.55,2.82]
[1734861601614,2.6964,185.57,185.52,5.5171]
[1734861601811,2.6964,185.57,185.52,2.82]
[1734861603306,2.6962,185.58,185.51,2.6971]
[1734861603506,8.78512579,185.61,185.51,5.5171]
[1734861603714,8.78512579,185.61,185.52,2.697]
[1734861605118,8.78512579,185.61,185.54,2.6968]
[1734861605417,8.78512579,185.61,185.51,2.82]
[1734861605619,2.6963,185.58,185.53,2.6969]
[1734861605814,2.6963,185.58,185.51,2.82]
[1734861606711,2.6961,185.59,185.54,2.6967]
[1734861606908,11.60512579,185.64,185.55,2.82]
[1734861608315,2.82,185.64,185.55,2.82]
[1734861608611,8.78512579,185.66,185.55,2.82]
[1734861608818,8.78512579,185.66,185.56,1.6874]
[1734861609017,2.6952,185.65,185.6,2.6958]
[1734861609312,8.78512579,185.69,185.6,2.82]
[1734861609708,2.6949,185.68,185.63,2.6954]
[1734861609914,8.78512579,185.69,185.6,2.82]
[1734861610318,8.78512579,185.66,185.56,3.3672]
[1734861610516,11.60512579,185.66,185.55,59.16852211]
[1734861610716,8.78512579,185.63,185.55,59.16852211]
[1734861610918,2.6961,185.6,185.54,5.5167]
[1734861611123,2.6961,185.6,185.54,2.82]
[1734861611619,2.6961,185.6,185.55,2.6965]
[1734861613620,2.6961,185.59,185.54,5.5168]
[1734861613822,2.82,185.62,185.54,5.5168]
[1734861614021,2.82,185.62,185.54,2.82]
[1734861614222,2.6963,185.58,185.53,2.6969]
[1734861614425,2.82,185.62,185.52,2.82]
[1734861614929,2.6963,185.58,185.53,2.6969]
[1734861615329,2.82,185.62,185.52,2.82]
[1734861615725,2.6961,185.59,185.53,2.697]
[1734861616224,2.6963,185.58,185.53,2.697]
[1734861616426,2.6963,185.58,185.52,2.82]
[1734861616729,2.6961,185.6,185.52,2.82]
[1734861617229,2.6961,185.6,185.56,2.6965]
[1734861617823,2.6958,185.62,185.57,2.6962]
[1734861618026,3.4138,185.65,185.56,2.82]
[1734861618218,11.60512579,185.66,185.56,2.82]
[1734861618426,2.6953,185.65,185.6,2.6959]
[1734861618627,8.78512579,185.66,185.6,2.6959]
[1734861619426,2.6954,185.64,185.6,2.6959]
[1734861619626,2.6954,185.64,185.56,11.60512579]
[1734861619823,2.6954,185.64,185.59,2.696]
[1734861620123,8.78512579,185.66,185.56,2.82]
[1734861620425,8.78512579,185.66,185.57,2.6963]
[1734861621024,2.6956,185.63,185.57,2.6963]
[1734861621324,8.78512579,185.66,185.59,2.696]
[1734861621530,8.78512579,185.66,185.56,2.82]
[1734861621920,2.6953,185.65,185.59,2.6961]
[1734861622326,2.6953,185.65,185.56,2.82]
[1734861623128,2.6953,185.65,185.6,2.6958]
[1734861623327,2.6953,185.65,185.6,5.5158]
[1734861623829,8.78512579,185.69,185.6,2.82]
[1734861624027,1.5951,185.71,185.61,1.6908]
[1734861624527,1.5951,185.71,185.65,2.6951]
[1734861624832,1.5951,185.71,185.65,2.82]
[1734861626330,2.6948,185.69,185.65,2.82]
[1734861626927,2.6948,185.68,185.65,2.82]
[1734861627131,1.5951,185.71,185.65,5.5151]
[1734861627330,1.5951,185.71,185.65,2.82]
[1734861627535,2.6944,185.71,185.65,2.82]
[1734861628433,2.6944,185.71,185.67,2.6949]
[1734861628629,6.95452915,185.74,185.65,2.82]
[1734861628630,4.13452915,185.74,185.65,11.60512579]
[1734861628831,22.47263027,185.83,185.68,8.78512579]
[1734861629037,31.25775606,185.84,185.71,8.78512579]
[1734861629333,31.25775606,185.84,185.72,4.4842]
[1734861629533,8.78512579,185.81,185.72,4.4842]
[1734861629733,2.6935,185.77,185.71,2.82]
[1734861630333,2.6933,185.79,185.71,2.82]
[1734861630730,1.6342,185.8,185.73,2.694]
[1734861631332,1.6342,185.8,185.71,2.82]
[1734861631832,8.78512579,185.78,185.68,4.4842]
[1734861632039,2.6939,185.75,185.68,7.1789]
[1734861633238,2.6939,185.75,185.69,2.6946]
[1734861633433,8.78512579,185.78,185.68,4.4842]
[1734861633735,4.4277,185.79,185.68,4.4842]
[1734861633931,2.82,185.79,185.72,2.6941]
[1734861634135,3.2655,185.8,185.72,5.5141]
[1734861634531,2.6935,185.78,185.72,5.5141]
[1734861634944,3.2655,185.8,185.72,2.82]
[1734861635240,2.6936,185.77,185.72,2.82]
[1734861635939,8.78512579,185.78,185.69,4.4453]
[1734861636632,2.6939,185.75,185.69,7.1398]
[1734861636838,2.6939,185.75,185.69,4.4453]
[1734861637838,2.6935,185.77,185.71,2.6943]
[1734861638832,8.78512579,185.78,185.71,2.6943]
[1734861639037,2.6936,185.76,185.71,2.6943]
[1734861639635,2.6939,185.74,185.69,4.3198]
[1734861639836,8.78512579,185.79,185.7,2.82]
[1734861640335,2.6938,185.75,185.7,2.82]
[1734861640535,3.2655,185.8,185.7,2.82]
[1734861640736,1.6077,185.84,185.7,2.82]
[1734861641040,2.6933,185.79,185.7,2.82]
[1734861641235,2.6933,185.79,185.73,2.6939]
[1734861641745,2.6934,185.78,185.73,2.6939]
[1734861642034,2.6934,185.78,185.7,2.82]
[1734861642235,11.60512579,185.82,185.74,2.6939]
[1734861642534,11.60512579,185.82,185.7,2.82]
[1734861642935,8.78512579,185.82,185.7,2.82]
[1734861643235,11.60512579,185.82,185.7,2.82]
[1734861643740,1.6077,185.84,185.71,1.6242]
[1734861644135,17.4203583,185.89,185.73,14.0289583]
[1734861644328,19.0423583,185.89,185.74,2.82]
[1734861644534,20.2403583,185.89,185.74,2.82]
[1734861644734,20.2403583,185.89,185.75,1.6527]
[1734861644941,20.2403583,185.89,185.74,2.82]
[1734861645240,14.0289583,185.86,185.75,2.82]
[1734861645434,2.82,185.85,185.75,2.82]
[1734861645941,2.6933,185.79,185.75,2.82]
[1734861646536,2.6933,185.79,185.75,5.5138]
[1734861646741,2.693,185.8,185.75,5.5138]
[1734861647546,2.6932,185.79,185.75,5.5138]
[1734861649146,14.0289583,185.83,185.72,2.82]
[1734861649538,3.2019,185.82,185.72,2.82]
[1734861649740,2.82,185.81,185.72,2.82]
[1734861650138,2.6934,185.78,185.73,2.694]
[1734861651038,2.82,185.81,185.73,2.694]
[1734861651946,2.6933,185.78,185.73,2.694]
[1734861654448,3.2019,185.82,185.69,1.6253]
[1734861654642,2.6935,185.77,185.7,2.82]
[1734861655544,2.6935,185.77,185.73,2.694]
[1734861655745,2.82,185.81,185.7,2.82]
[1734861656151,2.82,185.81,185.7,5.5145]
[1734861656649,2.6938,185.75,185.7,5.5145]
[1734861658146,2.6938,185.75,185.7,2.6945]
[1734861658541,2.6938,185.75,185.71,2.6943]
[1734861660043,2.6935,185.78,185.69,2.6946]
[1734861660249,2.82,185.77,185.67,2.82]
[1734861660448,4.3994,185.77,185.63,1.6451]
[1734861660848,4.3994,185.77,185.64,2.82]
[1734861661449,14.0289583,185.76,185.62,1.6051]
[1734861661655,14.0289583,185.73,185.62,2.82]
[1734861661950,2.82,185.72,185.62,2.82]
[1734861662156,2.82,185.72,185.63,2.6955]
[1734861662353,2.82,185.72,185.62,2.82]
[1734861663248,2.6948,185.68,185.64,2.6953]
[1734861663457,2.82,185.72,185.62,2.82]
[1734861663943,2.6946,185.69,185.62,2.82]
[1734861664147,8.78241537,185.69,185.62,2.82]
[1734861664755,2.6951,185.66,185.62,2.82]
[1734861665055,8.78241537,185.69,185.59,2.6959]
[1734861665255,1.7103,185.68,185.59,2.82]
[1734861666153,2.6954,185.64,185.59,5.5161]
[1734861666348,2.6954,185.64,185.59,2.82]
[1734861666957,2.6954,185.64,185.59,5.5161]
[1734861667259,2.6952,185.66,185.59,2.82]
[1734861667459,4.5303,185.68,185.6,2.6959]
[1734861667952,4.5303,185.68,185.59,2.82]
[1734861667953,2.6953,185.65,185.59,5.5161]
[1734861668759,4.5303,185.68,185.59,5.5161]
[1734861669851,4.4051,185.68,185.62,2.6955]
[1734861670057,12.91759428,185.72,185.59,11.60241537]
[1734861670256,15.73759428,185.72,185.59,11.60241537]
[1734861670453,2.6946,185.7,185.64,2.6952]
[1734861670662,2.6946,185.7,185.64,5.5152]
[1734861671055,12.91759428,185.72,185.64,2.82]
[1734861671264,4.13517891,185.72,185.64,2.82]
[1734861672565,6.82937891,185.72,185.67,2.6949]
[1734861672963,6.82937891,185.72,185.69,2.6946]
[1734861672964,4.13517891,185.72,185.69,2.6946]
[1734861673261,11.60241537,185.75,185.68,2.82]
[1734861673451,8.78241537,185.75,185.68,2.82]
[1734861674054,113.63291458,185.76,185.68,2.82]
[1734861674259,3.2518,185.84,185.68,11.60241537]
[1734861674260,2.82,185.8,185.68,11.60241537]
[1734861674460,8.78241537,185.81,185.68,11.60241537]
[1734861674658,2.6932,185.8,185.74,2.6938]
[1734861674862,2.82,185.82,185.72,2.82]
[1734861675057,2.82,185.82,185.73,2.82]
[1734861675663,1.708,185.83,185.73,2.82]
[1734861676461,2.6928,185.82,185.76,2.6936]
[1734861678075,1.708,185.83,185.76,2.6936]
[1734861678363,1.708,185.83,185.73,2.82]
[1734861678763,14.03078004,185.82,185.7,2.82]
[1734861678966,14.03078004,185.79,185.68,2.82]
[1734861679167,2.6938,185.75,185.68,2.82]
[1734861679465,2.82,185.78,185.68,2.82]
[1734861679664,2.82,185.81,185.68,2.82]
[1734861679859,1.708,185.83,185.68,2.82]
[1734861680167,1.708,185.83,185.76,2.6935]
[1734861680469,1.708,185.83,185.74,2.82]
[1734861680669,1.708,185.83,185.73,2.694]
[1734861680967,2.693,185.8,185.72,2.82]
[1734861681176,1.708,185.83,185.75,2.6936]
[1734861681464,2.693,185.81,185.75,2.6936]
[1734861681664,2.693,185.81,185.76,5.5136]
[1734861682365,2.6927,185.83,185.78,2.6932]
[1734861683271,14.03078004,185.87,185.76,2.82]
[1734861683470,2.6924,185.85,185.76,2.82]
[1734861684673,2.692,185.87,185.76,2.82]
[1734861684867,14.03078004,185.95,185.78,14.03078004]
[1734861685068,16.85078004,185.95,185.78,14.03078004]
[1734861685272,14.03078004,185.95,185.81,14.03078004]
[1734861685471,14.03078004,185.95,185.82,7.8071]
[1734861686372,2.6912,185.93,185.82,7.8071]
[1734861686970,2.6912,185.93,185.86,2.692]
[1734861687167,2.6912,185.93,185.87,2.82]
[1734861687472,2.691,185.95,185.87,2.82]
[1734861687673,1.701,185.97,185.87,2.82]
[1734861687875,2.82,186.0,185.87,2.82]
[1734861688472,14.03078004,185.95,185.82,4.9871]
[1734861688672,4.4214,185.94,185.84,2.82]
[1734861689073,2.6908,185.96,185.89,2.6916]
[1734861689267,2.6908,185.96,185.89,5.5116]
[1734861689574,14.03078004,185.98,185.89,5.5116]
[1734861690466,2.6909,185.95,185.89,5.5116]
[1734861691073,2.6907,185.96,185.9,2.6916]
[1734861691274,2.82,185.99,185.89,2.82]
[1734861691679,2.6906,185.97,185.91,2.6914]
[1734861692177,2.6899,186.02,185.95,2.6908]
[1734861692378,14.03078004,186.01,185.94,2.82]
[1734861692767,16.85078004,186.01,185.91,2.82]
[1734861694082,2.6907,185.97,185.91,5.5114]
[1734861694882,2.6907,185.96,185.91,2.82]
[1734861695479,16.85078004,186.01,185.91,5.5114]
[1734861695678,16.85078004,186.01,185.91,2.82]
[1734861696182,2.6904,185.98,185.92,2.6912]
[1734861698482,16.85078004,186.01,185.91,2.82]
[1734861698682,16.85078004,186.01,185.93,2.6911]
[1734861698983,2.82,186.01,185.93,2.6911]
[1734861699173,2.6904,185.99,185.93,2.6911]
[1734861699376,176.75650191,186.03,185.93,2.6911]
[1734861699783,2.6904,185.99,185.93,2.6911]
[1734861700785,176.75650191,186.03,185.91,5.5113]
[1734861700985,176.75650191,186.03,185.91,2.82]
[1734861701684,2.6904,185.99,185.93,2.6911]
[1734861701884,176.75650191,186.03,185.93,2.6911]
[1734861702083,2.6904,185.99,185.93,2.6911]
[1734861702280,2.6904,185.99,185.94,2.691]
[1734861703379,176.75650191,186.03,185.95,2.8]
[1734861703984,176.75650191,186.03,185.98,2.6904]
[1734861704880,2.6893,186.06,186.0,2.6901]
[1734861705086,17.32582315,186.09,185.99,2.8]
[1734861706088,2.6894,186.05,185.99,5.4902]
[1734861706290,2.6894,186.05,185.99,2.8]
[1734861706893,2.6894,186.05,185.99,5.4903]
[1734861707095,2.6894,186.05,185.99,2.8]